[Event "*** Titled Tuesday Blitz"]
[Site "Chess.com"]
[Date "2018.12.04"]
[Round "5"]
[White "Anar_Aliakbarov"]
[Black "Superfelix"]
[Result "1-0"]
[WhiteElo "2566"]
[BlackElo "2387"]
[TimeControl "180+2"]
[EndTime "14:06:42 PST"]
[Termination "Anar_Aliakbarov won by resignation"]

1. d4 {[%clk 0:03:01.9]} 1... Nf6 {[%clk 0:03:00.5]} 2. c4 {[%clk 0:02:58.7]}
2... g6 {[%clk 0:03:00.2]} 3. Nc3 {[%clk 0:02:59.2]} 3... Bg7 {[%clk 0:03:01.5]}
4. e4 {[%clk 0:03:00.6]} 4... d6 {[%clk 0:03:02.8]} 5. Nf3 {[%clk 0:03:02.2]}
5... O-O {[%clk 0:03:04]} 6. Be2 {[%clk 0:03:03.8]} 6... Na6 {[%clk 0:03:05.6]}
7. O-O {[%clk 0:03:04.3]} 7... e5 {[%clk 0:03:07]} 8. Be3 {[%clk 0:03:02.6]}
8... Ng4 {[%clk 0:03:07.7]} 9. Bg5 {[%clk 0:03:03.7]} 9... Qe8 {[%clk
0:03:08.9]} 10. dxe5 {[%clk 0:03:02]} 10... dxe5 {[%clk 0:03:10.8]} 11. h3
{[%clk 0:03:02.8]} 11... f6 {[%clk 0:03:11.9]} 12. Bd2 {[%clk 0:03:03.2]} 12...
Nh6 {[%clk 0:03:12.9]} 13. c5 {[%clk 0:03:03.4]} 13... Nxc5 {[%clk 0:03:13.9]}
14. Qc1 {[%clk 0:03:03.3]} 14... Nf7 {[%clk 0:03:14.9]} 15. Nd5 {[%clk
0:03:01.2]} 15... Ne6 {[%clk 0:03:16.3]} 16. Bb4 {[%clk 0:02:57.4]} 16... c6
{[%clk 0:03:10.8]} 17. Bxf8 {[%clk 0:02:56.8]} 17... Qxf8 {[%clk 0:03:12.7]} 18.
Nc3 {[%clk 0:02:57.8]} 18... Bh6 {[%clk 0:03:03.9]} 19. Qc2 {[%clk 0:02:56.2]}
19... Nfg5 {[%clk 0:03:04.8]} 20. Nxg5 {[%clk 0:02:56.6]} 20... Bxg5 {[%clk
0:03:04.3]} 21. Rfd1 {[%clk 0:02:51]} 21... Nd4 {[%clk 0:03:05.2]} 22. Qa4
{[%clk 0:02:47.6]} 22... Be6 {[%clk 0:02:59.8]} 23. Bc4 {[%clk 0:02:44.9]} 23...
Qf7 {[%clk 0:02:57.7]} 24. Bxe6 {[%clk 0:02:43.5]} 24... Qxe6 {[%clk 0:02:59.6]}
25. Rxd4 {[%clk 0:02:35.5]} 25... exd4 {[%clk 0:02:59.8]} 26. Qxd4 {[%clk
0:02:36.4]} 26... Bf4 {[%clk 0:02:46.2]} 27. Rd1 {[%clk 0:02:35]} 27... Re8
{[%clk 0:02:42.3]} 28. Qxa7 {[%clk 0:02:31]} 28... f5 {[%clk 0:02:40.6]} 29.
Qxb7 {[%clk 0:02:27.2]} 29... fxe4 {[%clk 0:02:39.6]} 30. Qd7 {[%clk 0:02:06]}
30... e3 {[%clk 0:02:35.5]} 31. Qxe6+ {[%clk 0:02:05.4]} 31... Rxe6 {[%clk
0:02:37.4]} 32. fxe3 {[%clk 0:02:05.3]} 32... Bxe3+ {[%clk 0:02:38.1]} 33. Kf1
{[%clk 0:02:04.9]} 33... c5 {[%clk 0:02:34.2]} 34. b3 {[%clk 0:01:59.1]} 34...
Bd4 {[%clk 0:02:31.9]} 35. Nb5 {[%clk 0:01:44.6]} 35... Rf6+ {[%clk 0:02:29.2]}
36. Ke1 {[%clk 0:01:45.3]} 36... Be5 {[%clk 0:02:27.1]} 37. Rd5 {[%clk 0:01:43]}
37... Bg3+ {[%clk 0:02:25.1]} 38. Kd1 {[%clk 0:01:42.7]} 38... Rf2 {[%clk
0:02:21.3]} 39. Rd2 {[%clk 0:01:42.1]} 39... Rf1+ {[%clk 0:02:19.4]} 40. Kc2
{[%clk 0:01:42.7]} 40... h5 {[%clk 0:02:18.3]} 41. a4 {[%clk 0:01:42.4]} 41...
Be1 {[%clk 0:02:09.5]} 42. Re2 {[%clk 0:01:41.1]} 42... Bb4 {[%clk 0:02:07.7]}
43. Kd3 {[%clk 0:01:36.3]} 43... Rb1 {[%clk 0:02:05.6]} 44. Kc2 {[%clk
0:01:30.9]} 44... Ra1 {[%clk 0:02:03.8]} 45. Kb2 {[%clk 0:01:31.2]} 45... Rg1
{[%clk 0:02:03.6]} 46. Nd6 {[%clk 0:01:31.8]} 46... Kg7 {[%clk 0:02:03.1]} 47.
Nc4 {[%clk 0:01:32.1]} 47... Rf1 {[%clk 0:01:56]} 48. Ne5 {[%clk 0:01:21.8]}
48... Kf6 {[%clk 0:01:52]} 49. Nd3 {[%clk 0:01:21.7]} 49... g5 {[%clk
0:01:48.9]} 50. Rf2+ {[%clk 0:01:04.9]} 50... Rxf2+ {[%clk 0:01:49.7]} 51. Nxf2
{[%clk 0:01:06.8]} 51... Kf5 {[%clk 0:01:41.2]} 52. Nd3 {[%clk 0:01:07.6]} 52...
Bd2 {[%clk 0:01:38.1]} 53. Nxc5 {[%clk 0:01:07.9]} 53... Kf4 {[%clk 0:01:39.4]}
54. b4 {[%clk 0:00:54.3]} 54... Ke3 {[%clk 0:01:15.8]} 55. b5 {[%clk 0:00:51.3]}
55... Ba5 {[%clk 0:01:10]} 56. Nb3 {[%clk 0:00:45.9]} 56... Bd8 {[%clk
0:01:08.2]} 57. a5 {[%clk 0:00:46.7]} 57... Kf2 {[%clk 0:01:09.5]} 58. a6 {[%clk
0:00:47]} 58... Kxg2 {[%clk 0:01:10.7]} 59. a7 {[%clk 0:00:47.8]} 1-0

[Event "*** Titled Tuesday Blitz"]
[Site "Chess.com"]
[Date "2018.12.04"]
[Round "5"]
[White "Karina_Oparina"]
[Black "pedroholly22"]
[Result "0-1"]
[WhiteElo "2113"]
[BlackElo "2205"]
[TimeControl "180+2"]
[EndTime "14:06:49 PST"]
[Termination "pedroholly22 won on time"]

1. c4 {[%clk 0:02:59.8]} 1... Nf6 {[%clk 0:02:57.3]} 2. Nf3 {[%clk 0:03:00.1]}
2... e6 {[%clk 0:02:59.2]} 3. Nc3 {[%clk 0:03:00.4]} 3... Bb4 {[%clk 0:02:57.9]}
4. Qc2 {[%clk 0:03:00.2]} 4... O-O {[%clk 0:02:56.5]} 5. e3 {[%clk 0:03:00.8]}
5... d5 {[%clk 0:02:57.2]} 6. b3 {[%clk 0:02:56.4]} 6... c5 {[%clk 0:02:56.9]}
7. Bb2 {[%clk 0:02:52.1]} 7... Nc6 {[%clk 0:02:55.7]} 8. cxd5 {[%clk 0:02:46.1]}
8... exd5 {[%clk 0:02:52.5]} 9. a3 {[%clk 0:02:40.2]} 9... Ba5 {[%clk
0:02:52.7]} 10. d4 {[%clk 0:02:35.6]} 10... cxd4 {[%clk 0:02:53.2]} 11. exd4
{[%clk 0:02:35.7]} 11... g6 {[%clk 0:02:33.1]} 12. Bd3 {[%clk 0:02:23.3]} 12...
Re8+ {[%clk 0:02:32.3]} 13. Kf1 {[%clk 0:02:16.8]} 13... Bxc3 {[%clk 0:02:07.1]}
14. Bxc3 {[%clk 0:02:14.3]} 14... Ne4 {[%clk 0:02:09]} 15. Bb2 {[%clk
0:01:44.2]} 15... Bf5 {[%clk 0:01:54.5]} 16. h3 {[%clk 0:01:36]} 16... Rc8
{[%clk 0:01:51.6]} 17. Qd1 {[%clk 0:01:33.2]} 17... Qb6 {[%clk 0:01:40.6]} 18.
b4 {[%clk 0:01:04.2]} 18... a5 {[%clk 0:01:29]} 19. b5 {[%clk 0:01:02.8]} 19...
Nd8 {[%clk 0:01:29.7]} 20. Rc1 {[%clk 0:00:46.2]} 20... Rxc1 {[%clk 0:01:25.6]}
21. Qxc1 {[%clk 0:00:46.6]} 21... Nd6 {[%clk 0:01:12.2]} 22. Be2 {[%clk
0:00:26.9]} 22... Nxb5 {[%clk 0:01:04.7]} 23. Qc5 {[%clk 0:00:24.6]} 23... Qxc5
{[%clk 0:01:00.7]} 24. dxc5 {[%clk 0:00:25.5]} 24... Nc7 {[%clk 0:00:59.5]} 25.
g4 {[%clk 0:00:24.3]} 25... Be4 {[%clk 0:01:00]} 26. Kg2 {[%clk 0:00:21.3]}
26... Nc6 {[%clk 0:01:00]} 27. Rd1 {[%clk 0:00:17.9]} 27... Ne6 {[%clk
0:01:00.5]} 28. Rc1 {[%clk 0:00:16.3]} 28... Nf4+ {[%clk 0:00:55.3]} 29. Kf1
{[%clk 0:00:15.8]} 29... Nxh3 {[%clk 0:00:42.4]} 30. Nd4 {[%clk 0:00:16.7]}
30... Nf4 {[%clk 0:00:41]} 31. Nxc6 {[%clk 0:00:16.2]} 31... b6 {[%clk
0:00:40.9]} 32. cxb6 {[%clk 0:00:12.6]} 32... Bg2+ {[%clk 0:00:40.5]} 33. Ke1
{[%clk 0:00:06.1]} 33... Rxe2+ {[%clk 0:00:37.4]} 34. Kd1 {[%clk 0:00:07]} 34...
Rxb2 {[%clk 0:00:37.3]} 35. Nb4 {[%clk 0:00:06.8]} 35... Bf3+ {[%clk 0:00:36.6]}
36. Ke1 {[%clk 0:00:07]} 36... axb4 {[%clk 0:00:19.5]} 0-1

[Event "*** Titled Tuesday Blitz"]
[Site "Chess.com"]
[Date "2018.12.04"]
[Round "5"]
[White "Guenplen"]
[Black "David_Klein"]
[Result "1-0"]
[WhiteElo "2828"]
[BlackElo "2596"]
[TimeControl "180+2"]
[EndTime "14:06:54 PST"]
[Termination "Guenplen won by checkmate"]

1. d4 {[%clk 0:03:01.9]} 1... f5 {[%clk 0:02:58.4]} 2. Bf4 {[%clk 0:02:59.1]}
2... Nf6 {[%clk 0:02:59]} 3. e3 {[%clk 0:02:59.9]} 3... g6 {[%clk 0:03:00]} 4.
Nf3 {[%clk 0:03:01.2]} 4... Bg7 {[%clk 0:03:01.1]} 5. Be2 {[%clk 0:03:01.4]}
5... d6 {[%clk 0:03:02]} 6. O-O {[%clk 0:03:02.5]} 6... O-O {[%clk 0:02:59.2]}
7. c4 {[%clk 0:03:03.3]} 7... Ne4 {[%clk 0:02:53.2]} 8. Nbd2 {[%clk 0:02:51.8]}
8... Nc6 {[%clk 0:02:44.1]} 9. d5 {[%clk 0:02:32.1]} 9... Nxd2 {[%clk
0:02:22.8]} 10. Qxd2 {[%clk 0:02:30.8]} 10... Ne5 {[%clk 0:02:23.9]} 11. Nxe5
{[%clk 0:01:59.3]} 11... dxe5 {[%clk 0:02:23.7]} 12. Bg3 {[%clk 0:02:00.6]}
12... e6 {[%clk 0:02:11.8]} 13. Rfd1 {[%clk 0:01:47.5]} 13... exd5 {[%clk
0:02:03.5]} 14. cxd5 {[%clk 0:01:49.4]} 14... Qf6 {[%clk 0:01:51.1]} 15. f3
{[%clk 0:01:46.7]} 15... c6 {[%clk 0:01:35.7]} 16. e4 {[%clk 0:01:32.5]} 16...
cxd5 {[%clk 0:01:29]} 17. Qxd5+ {[%clk 0:01:28.2]} 17... Be6 {[%clk 0:01:20.3]}
18. Qb5 {[%clk 0:01:11.2]} 18... a6 {[%clk 0:00:32.3]} 19. Qb6 {[%clk
0:01:06.1]} 19... Qf7 {[%clk 0:00:20.7]} 20. Rd6 {[%clk 0:00:45.6]} 20... Rac8
{[%clk 0:00:21.4]} 21. Rxe6 {[%clk 0:00:42.2]} 21... fxe4 {[%clk 0:00:20.6]} 22.
fxe4 {[%clk 0:00:38.5]} 22... Rc2 {[%clk 0:00:21.4]} 23. Bf3 {[%clk 0:00:27]}
23... Qd7 {[%clk 0:00:18.6]} 24. Rd6 {[%clk 0:00:24.1]} 24... Qc8 {[%clk
0:00:17.2]} 25. Rad1 {[%clk 0:00:21.9]} 25... Bh6 {[%clk 0:00:15.6]} 26. Qb3+
{[%clk 0:00:21]} 26... Rc4 {[%clk 0:00:11.6]} 27. Be2 {[%clk 0:00:20.7]} 27...
b5 {[%clk 0:00:09.5]} 28. Bxc4+ {[%clk 0:00:19.4]} 28... bxc4 {[%clk 0:00:11.4]}
29. Qc2 {[%clk 0:00:14.1]} 29... Be3+ {[%clk 0:00:12.2]} 30. Kh1 {[%clk
0:00:15.1]} 30... Bc5 {[%clk 0:00:13.4]} 31. Qxc4+ {[%clk 0:00:13.7]} 31... Kg7
{[%clk 0:00:13.5]} 32. Rd7+ {[%clk 0:00:14.1]} 32... Kh6 {[%clk 0:00:14.3]} 33.
Qc1+ {[%clk 0:00:13.9]} 33... g5 {[%clk 0:00:14.8]} 34. h4 {[%clk 0:00:14]}
34... Rg8 {[%clk 0:00:04.7]} 35. R1d5 {[%clk 0:00:13.1]} 35... Kh5 {[%clk
0:00:05.2]} 36. Qd1+ {[%clk 0:00:11.2]} 36... g4 {[%clk 0:00:05.7]} 37. Rxe5+
{[%clk 0:00:10.3]} 37... Kg6 {[%clk 0:00:06.9]} 38. Re6+ {[%clk 0:00:11]} 38...
Kh5 {[%clk 0:00:07.6]} 39. Qd5+ {[%clk 0:00:11.5]} 39... Rg5 {[%clk 0:00:07.6]}
40. Qxg5# {[%clk 0:00:12.4]} 1-0

[Event "*** Titled Tuesday Blitz"]
[Site "Chess.com"]
[Date "2018.12.04"]
[Round "5"]
[White "Jenia84"]
[Black "mjray79"]
[Result "1-0"]
[WhiteElo "2218"]
[BlackElo "2142"]
[TimeControl "180+2"]
[EndTime "14:06:54 PST"]
[Termination "Jenia84 won on time"]

1. Nf3 {[%clk 0:02:51.3]} 1... Nf6 {[%clk 0:02:58.3]} 2. b3 {[%clk 0:02:51.5]}
2... e6 {[%clk 0:02:57.5]} 3. Bb2 {[%clk 0:02:52.9]} 3... d5 {[%clk 0:02:57.1]}
4. e3 {[%clk 0:02:54.3]} 4... c6 {[%clk 0:02:56.3]} 5. Be2 {[%clk 0:02:54.7]}
5... Nbd7 {[%clk 0:02:57]} 6. O-O {[%clk 0:02:56.1]} 6... Bd6 {[%clk 0:02:57.8]}
7. d4 {[%clk 0:02:54.8]} 7... O-O {[%clk 0:02:54.7]} 8. Nbd2 {[%clk 0:02:54.8]}
8... Qe7 {[%clk 0:02:55.6]} 9. Ne5 {[%clk 0:02:55]} 9... c5 {[%clk 0:02:42.1]}
10. Nxd7 {[%clk 0:02:52.8]} 10... Bxd7 {[%clk 0:02:38.8]} 11. c4 {[%clk
0:02:53.1]} 11... cxd4 {[%clk 0:02:36.3]} 12. Bxd4 {[%clk 0:02:50]} 12... e5
{[%clk 0:02:31.3]} 13. Bb2 {[%clk 0:02:50.1]} 13... Be6 {[%clk 0:02:30.4]} 14.
cxd5 {[%clk 0:02:50]} 14... Bxd5 {[%clk 0:02:29.9]} 15. Bc4 {[%clk 0:02:42.4]}
15... Bc6 {[%clk 0:02:27.4]} 16. Qe2 {[%clk 0:02:38.3]} 16... Rad8 {[%clk
0:02:25.7]} 17. Bb5 {[%clk 0:02:28.8]} 17... Bb4 {[%clk 0:02:23.6]} 18. Nf3
{[%clk 0:02:25.8]} 18... Bxf3 {[%clk 0:02:11.4]} 19. Qxf3 {[%clk 0:02:25.4]}
19... Rd2 {[%clk 0:02:11.8]} 20. Rab1 {[%clk 0:02:17.7]} 20... Qc5 {[%clk
0:02:07.3]} 21. Qxb7 {[%clk 0:01:54.5]} 21... Nd5 {[%clk 0:01:22.8]} 22. Bc4
{[%clk 0:01:47.7]} 22... Nb6 {[%clk 0:00:49.3]} 23. a3 {[%clk 0:01:24.1]} 23...
Bxa3 {[%clk 0:00:44.5]} 24. Bxa3 {[%clk 0:01:24.6]} 24... Qxa3 {[%clk
0:00:44.5]} 25. Ra1 {[%clk 0:01:25.5]} 25... Qb2 {[%clk 0:00:42]} 26. Rxa7
{[%clk 0:01:25.2]} 26... Nxc4 {[%clk 0:00:30.3]} 27. bxc4 {[%clk 0:01:23.2]}
27... Qc2 {[%clk 0:00:30.7]} 28. Ra8 {[%clk 0:01:11.8]} 28... Rdd8 {[%clk
0:00:16.4]} 29. Rxd8 {[%clk 0:01:09.4]} 29... Rxd8 {[%clk 0:00:17.1]} 30. Qc7
{[%clk 0:01:07]} 30... Re8 {[%clk 0:00:14.7]} 31. c5 {[%clk 0:01:06.8]} 31... e4
{[%clk 0:00:13.9]} 32. c6 {[%clk 0:01:07.1]} 32... h6 {[%clk 0:00:12.1]} 33. Qd7
{[%clk 0:01:02.8]} 33... Re6 {[%clk 0:00:12]} 34. c7 {[%clk 0:00:58.7]} 34...
Rc6 {[%clk 0:00:12.6]} 35. Qe8+ {[%clk 0:00:57.2]} 35... Kh7 {[%clk 0:00:13]}
36. Qxf7 {[%clk 0:00:58.2]} 36... Rxc7 {[%clk 0:00:13.8]} 37. Qf5+ {[%clk
0:00:58.4]} 37... g6 {[%clk 0:00:11.3]} 38. Qe5 {[%clk 0:00:57.8]} 38... Rf7
{[%clk 0:00:11]} 39. h3 {[%clk 0:00:55.2]} 39... Qd3 {[%clk 0:00:02.6]} 40. Rc1
{[%clk 0:00:50.1]} 40... Qd2 {[%clk 0:00:02.4]} 41. Rf1 {[%clk 0:00:42.4]} 41...
Qd3 {[%clk 0:00:02.6]} 42. Qe6 {[%clk 0:00:42]} 42... Kg7 {[%clk 0:00:02.1]} 43.
Qe5+ {[%clk 0:00:37.5]} 43... Kh7 {[%clk 0:00:02.4]} 44. Qd4 {[%clk 0:00:38]}
1-0

[Event "*** Titled Tuesday Blitz"]
[Site "Chess.com"]
[Date "2018.12.04"]
[Round "5"]
[White "chesstatour"]
[Black "WPWPWP-2015"]
[Result "0-1"]
[WhiteElo "2090"]
[BlackElo "2280"]
[TimeControl "180+2"]
[EndTime "14:06:58 PST"]
[Termination "WPWPWP-2015 won by resignation"]

1. c4 {[%clk 0:03:01.9]} 1... e5 {[%clk 0:02:59.4]} 2. Nc3 {[%clk 0:03:02.4]}
2... Nf6 {[%clk 0:02:59.6]} 3. g3 {[%clk 0:03:03.5]} 3... d5 {[%clk 0:02:54.7]}
4. cxd5 {[%clk 0:03:04]} 4... Nxd5 {[%clk 0:02:55.8]} 5. Bg2 {[%clk 0:03:05.3]}
5... Nb6 {[%clk 0:02:56.9]} 6. Nf3 {[%clk 0:03:03.9]} 6... Nc6 {[%clk
0:02:57.9]} 7. O-O {[%clk 0:03:01.2]} 7... Be7 {[%clk 0:02:58.3]} 8. d3 {[%clk
0:03:02.1]} 8... O-O {[%clk 0:02:58.7]} 9. Be3 {[%clk 0:02:49.3]} 9... Be6
{[%clk 0:02:58.5]} 10. Na4 {[%clk 0:02:41.8]} 10... Nd5 {[%clk 0:02:49.6]} 11.
Bc5 {[%clk 0:02:37]} 11... Bd6 {[%clk 0:02:42.8]} 12. Rc1 {[%clk 0:02:03.1]}
12... Qe7 {[%clk 0:02:31.7]} 13. Qd2 {[%clk 0:01:47.1]} 13... h6 {[%clk
0:02:27]} 14. a3 {[%clk 0:01:26.8]} 14... Rad8 {[%clk 0:02:19.6]} 15. Bxd6
{[%clk 0:01:09.8]} 15... cxd6 {[%clk 0:02:18.4]} 16. b4 {[%clk 0:01:07.8]} 16...
Nc7 {[%clk 0:01:58.8]} 17. Ne1 {[%clk 0:00:59.9]} 17... d5 {[%clk 0:01:56.6]}
18. Nc5 {[%clk 0:00:50.7]} 18... Bc8 {[%clk 0:01:56.9]} 19. Nc2 {[%clk
0:00:32.1]} 19... f5 {[%clk 0:01:51.6]} 20. f4 {[%clk 0:00:20.9]} 20... e4
{[%clk 0:01:50]} 21. d4 {[%clk 0:00:18.9]} 21... Nb5 {[%clk 0:01:38.9]} 22. e3
{[%clk 0:00:18.6]} 22... Nd6 {[%clk 0:01:36.8]} 23. Qc3 {[%clk 0:00:15.4]} 23...
Be6 {[%clk 0:01:19]} 24. a4 {[%clk 0:00:14.2]} 24... Bf7 {[%clk 0:01:01.1]} 25.
b5 {[%clk 0:00:14.9]} 25... Nb8 {[%clk 0:01:01]} 26. Nb4 {[%clk 0:00:16]} 26...
Rc8 {[%clk 0:00:55.2]} 27. Qd2 {[%clk 0:00:14]} 27... Nc4 {[%clk 0:00:55.3]} 28.
Qe2 {[%clk 0:00:14.3]} 28... b6 {[%clk 0:00:51.8]} 29. Nca6 {[%clk 0:00:11.4]}
29... Nxa6 {[%clk 0:00:52.4]} 30. Nxa6 {[%clk 0:00:11.8]} 30... Qa3 {[%clk
0:00:53.1]} 31. Ra1 {[%clk 0:00:10.5]} 31... Qxe3+ {[%clk 0:00:53.3]} 32. Qxe3
{[%clk 0:00:11.9]} 32... Nxe3 {[%clk 0:00:53.9]} 33. Rfc1 {[%clk 0:00:12.1]}
33... Nc2 {[%clk 0:00:48.6]} 34. Rd1 {[%clk 0:00:12.9]} 34... Nxa1 {[%clk
0:00:49.1]} 35. Rxa1 {[%clk 0:00:13.8]} 35... Rc4 {[%clk 0:00:49.8]} 36. Rb1
{[%clk 0:00:12.2]} 36... Rxd4 {[%clk 0:00:50.3]} 37. Nb4 {[%clk 0:00:12.7]}
37... Rc4 {[%clk 0:00:44.9]} 38. a5 {[%clk 0:00:12]} 38... d4 {[%clk 0:00:43.2]}
39. axb6 {[%clk 0:00:11.8]} 39... axb6 {[%clk 0:00:43.9]} 40. Nc6 {[%clk
0:00:12.7]} 40... d3 {[%clk 0:00:43.7]} 41. Rd1 {[%clk 0:00:12.7]} 41... Rc5
{[%clk 0:00:43]} 42. Nd4 {[%clk 0:00:10.7]} 42... Bc4 {[%clk 0:00:42.5]} 43. Bh3
{[%clk 0:00:10.5]} 43... g6 {[%clk 0:00:42.8]} 44. g4 {[%clk 0:00:11.7]} 44...
fxg4 {[%clk 0:00:42.7]} 45. Bxg4 {[%clk 0:00:11.6]} 45... Rxf4 {[%clk
0:00:43.7]} 46. Bd7 {[%clk 0:00:11.8]} 46... e3 {[%clk 0:00:44.1]} 47. Ne6
{[%clk 0:00:08.3]} 47... Bxe6 {[%clk 0:00:41.5]} 48. Bxe6+ {[%clk 0:00:08.8]}
48... Kg7 {[%clk 0:00:42.1]} 49. Rxd3 {[%clk 0:00:09.8]} 49... e2 {[%clk
0:00:42.8]} 0-1

[Event "*** Titled Tuesday Blitz"]
[Site "Chess.com"]
[Date "2018.12.04"]
[Round "5"]
[White "mazetofonias"]
[Black "Muguet7"]
[Result "1/2-1/2"]
[WhiteElo "2554"]
[BlackElo "2443"]
[TimeControl "180+2"]
[EndTime "14:07:02 PST"]
[Termination "Game drawn by agreement"]

1. e4 {[%clk 0:03:01.9]} 1... c5 {[%clk 0:03:00.4]} 2. Nf3 {[%clk 0:03:03.1]}
2... d6 {[%clk 0:03:01.4]} 3. Bb5+ {[%clk 0:03:04.6]} 3... Nd7 {[%clk
0:03:01.8]} 4. d4 {[%clk 0:03:05.8]} 4... a6 {[%clk 0:02:58.8]} 5. Bxd7+ {[%clk
0:03:05.5]} 5... Bxd7 {[%clk 0:02:59.2]} 6. O-O {[%clk 0:03:06.5]} 6... cxd4
{[%clk 0:02:59.3]} 7. Qxd4 {[%clk 0:03:07.2]} 7... Nf6 {[%clk 0:03:00.5]} 8. c4
{[%clk 0:03:08.3]} 8... e6 {[%clk 0:03:00.7]} 9. Nc3 {[%clk 0:03:06.1]} 9... Be7
{[%clk 0:03:01.3]} 10. Re1 {[%clk 0:03:07.4]} 10... Bc6 {[%clk 0:03:00.3]} 11.
b3 {[%clk 0:03:07.4]} 11... O-O {[%clk 0:03:00.1]} 12. Ba3 {[%clk 0:03:07.9]}
12... b5 {[%clk 0:02:53]} 13. Rad1 {[%clk 0:03:04.7]} 13... Ne8 {[%clk 0:02:52]}
14. Nd2 {[%clk 0:03:01.3]} 14... Bf6 {[%clk 0:02:42.7]} 15. Qd3 {[%clk
0:03:02.2]} 15... Qa5 {[%clk 0:02:30.3]} 16. Bb2 {[%clk 0:03:00]} 16... b4
{[%clk 0:02:28.8]} 17. Na4 {[%clk 0:02:39]} 17... Bxa4 {[%clk 0:02:18.4]} 18.
Bxf6 {[%clk 0:02:39.7]} 18... Nxf6 {[%clk 0:02:19.2]} 19. bxa4 {[%clk
0:02:37.9]} 19... Qxa4 {[%clk 0:02:13.3]} 20. Qxd6 {[%clk 0:02:37]} 20... Rfd8
{[%clk 0:02:14.2]} 21. Qc5 {[%clk 0:02:36]} 21... Nxe4 {[%clk 0:02:11.7]} 22.
Qe3 {[%clk 0:02:16.3]} 22... Nc3 {[%clk 0:02:08.6]} 23. Rc1 {[%clk 0:02:13.8]}
23... Qxa2 {[%clk 0:02:06.5]} 24. Ne4 {[%clk 0:02:05]} 24... Nxe4 {[%clk
0:01:57.8]} 25. Qxe4 {[%clk 0:02:06.9]} 25... b3 {[%clk 0:01:47.8]} 26. c5
{[%clk 0:02:05.5]} 26... a5 {[%clk 0:01:39]} 27. c6 {[%clk 0:02:04.6]} 27... b2
{[%clk 0:01:39.4]} 28. Rc5 {[%clk 0:01:39]} 28... Qa3 {[%clk 0:01:20.2]} 29. Rc4
{[%clk 0:01:34.4]} 29... Rac8 {[%clk 0:01:03.8]} 30. c7 {[%clk 0:01:31.6]} 30...
Rd5 {[%clk 0:00:49.9]} 31. Qc2 {[%clk 0:01:05.8]} 31... Qa1 {[%clk 0:00:34.2]}
32. Re4 {[%clk 0:01:01.2]} 32... Rb5 {[%clk 0:00:30.3]} 33. Qd3 {[%clk
0:00:43.7]} 33... Rd5 {[%clk 0:00:18.4]} 34. Qb3 {[%clk 0:00:36.7]} 34... g6
{[%clk 0:00:18.7]} 35. Qb8 {[%clk 0:00:35.5]} 35... Rd1 {[%clk 0:00:18.9]} 36.
Qxc8+ {[%clk 0:00:34.8]} 36... Kg7 {[%clk 0:00:20.2]} 37. Qh8+ {[%clk
0:00:32.4]} 37... Kxh8 {[%clk 0:00:20.9]} 38. c8=Q+ {[%clk 0:00:33.6]} 38... Kg7
{[%clk 0:00:22.3]} 39. Qc3+ {[%clk 0:00:34.5]} 39... Kg8 {[%clk 0:00:22.2]} 40.
Qc8+ {[%clk 0:00:17.9]} 40... Kg7 {[%clk 0:00:23]} 41. Qc3+ {[%clk 0:00:18.9]}
41... Kg8 {[%clk 0:00:16.6]} 1/2-1/2

[Event "*** Titled Tuesday Blitz"]
[Site "Chess.com"]
[Date "2018.12.04"]
[Round "5"]
[White "DeviatkinAndrey"]
[Black "Robert_Chessmood"]
[Result "0-1"]
[WhiteElo "2669"]
[BlackElo "2948"]
[TimeControl "180+2"]
[EndTime "14:07:04 PST"]
[Termination "Robert_Chessmood won by resignation"]

1. c3 {[%clk 0:02:56.6]} 1... e5 {[%clk 0:02:58.6]} 2. d4 {[%clk 0:02:57.5]}
2... exd4 {[%clk 0:02:59.9]} 3. cxd4 {[%clk 0:02:58.5]} 3... d5 {[%clk
0:03:01.5]} 4. Nf3 {[%clk 0:02:57.7]} 4... Nf6 {[%clk 0:03:01.2]} 5. Bg5 {[%clk
0:02:57]} 5... h6 {[%clk 0:03:02]} 6. Bh4 {[%clk 0:02:54.7]} 6... g5 {[%clk
0:03:03.1]} 7. Bg3 {[%clk 0:02:55.3]} 7... Ne4 {[%clk 0:03:04.6]} 8. Nfd2 {[%clk
0:02:51.1]} 8... Nxg3 {[%clk 0:03:03]} 9. hxg3 {[%clk 0:02:52.2]} 9... Bg7
{[%clk 0:03:04.4]} 10. e3 {[%clk 0:02:50.3]} 10... c5 {[%clk 0:03:05.1]} 11. Nc3
{[%clk 0:02:09]} 11... cxd4 {[%clk 0:03:03.4]} 12. exd4 {[%clk 0:02:06.2]} 12...
Nc6 {[%clk 0:03:03.3]} 13. Nb3 {[%clk 0:01:53.8]} 13... O-O {[%clk 0:02:58.4]}
14. Be2 {[%clk 0:01:54.2]} 14... Be6 {[%clk 0:02:51.3]} 15. O-O {[%clk 0:01:55]}
15... Qb6 {[%clk 0:02:40.8]} 16. Bg4 {[%clk 0:00:41.8]} 16... Nxd4 {[%clk
0:02:28.1]} 17. Nxd4 {[%clk 0:00:39]} 17... Qxd4 {[%clk 0:02:03.2]} 18. Bxe6
{[%clk 0:00:36.6]} 18... fxe6 {[%clk 0:02:04.2]} 19. Qe2 {[%clk 0:00:37.7]}
19... Qe5 {[%clk 0:01:53.4]} 20. Qd3 {[%clk 0:00:38.1]} 20... Qf5 {[%clk
0:01:50.9]} 21. Qe2 {[%clk 0:00:38]} 21... Rac8 {[%clk 0:01:31.6]} 22. Rae1
{[%clk 0:00:27.4]} 22... Bxc3 {[%clk 0:01:11.9]} 23. bxc3 {[%clk 0:00:28.1]}
23... Rxc3 {[%clk 0:01:13.5]} 24. Qxe6+ {[%clk 0:00:27.5]} 24... Qxe6 {[%clk
0:01:15.4]} 25. Rxe6 {[%clk 0:00:28.7]} 25... Rc6 {[%clk 0:01:16.3]} 26. Re5
{[%clk 0:00:24.5]} 26... Rd6 {[%clk 0:01:06.2]} 27. f4 {[%clk 0:00:25.8]} 27...
d4 {[%clk 0:01:03.4]} 28. fxg5 {[%clk 0:00:22.2]} 28... d3 {[%clk 0:00:44.4]}
29. Rd1 {[%clk 0:00:22.4]} 29... h5 {[%clk 0:00:42.8]} 30. g6 {[%clk 0:00:14.2]}
30... d2 {[%clk 0:00:35.6]} 31. Rxh5 {[%clk 0:00:11.1]} 31... Re8 {[%clk
0:00:36.8]} 32. Rh1 {[%clk 0:00:03.4]} 32... b5 {[%clk 0:00:06.7]} 33. g4 {[%clk
0:00:04.3]} 33... Re1+ {[%clk 0:00:06.7]} 34. Kh2 {[%clk 0:00:05.3]} 34... Rxd1
{[%clk 0:00:08.3]} 35. Rxd1 {[%clk 0:00:06.1]} 35... b4 {[%clk 0:00:09.9]} 36.
Kg3 {[%clk 0:00:07]} 36... a5 {[%clk 0:00:11.2]} 37. Kf4 {[%clk 0:00:07.6]}
37... a4 {[%clk 0:00:12]} 38. Ke3 {[%clk 0:00:06.9]} 38... a3 {[%clk 0:00:10.9]}
39. Ke2 {[%clk 0:00:03.6]} 39... Kg7 {[%clk 0:00:11.9]} 40. Rb1 {[%clk
0:00:03.8]} 40... d1=Q+ {[%clk 0:00:11.7]} 0-1